bitfinex/quotes_BTCUSD_20251010
["timestamp","ask_amount","ask_price","bid_price","bid_amount"]
[1760055202931,1.58579592,121770.0,121760.0,1e-08]
[1760055206050,1.58509575,121770.0,121760.0,1e-08]
[1760055206973,1.38190921,121770.0,121760.0,1e-08]
[1760055207184,1.54615327,121770.0,121760.0,1e-08]
[1760055209344,0.59388576,121770.0,121760.0,0.34216715]
[1760055209566,0.82600576,121770.0,121760.0,0.36234715]
[1760055209787,0.50844576,121770.0,121760.0,0.36234715]
[1760055210015,0.7027588,121770.0,121760.0,0.44637085]
[1760055210234,0.7027588,121770.0,121760.0,0.40566715]
[1760055210684,0.7027588,121770.0,121760.0,0.37688715]
[1760055210902,0.47888374,121770.0,121760.0,0.37688715]
[1760055211126,0.6977588,121770.0,121760.0,0.34216715]
[1760055211551,0.6977588,121770.0,121760.0,1e-08]
[1760055211769,0.6977588,121770.0,121760.0,0.34216715]
[1760055211987,0.6977588,121770.0,121760.0,0.36234715]
[1760055213137,0.69478056,121770.0,121760.0,0.36234715]
[1760055214341,0.68707625,121770.0,121760.0,0.36234715]
[1760055214544,0.69476775,121770.0,121760.0,0.36234715]
[1760055214758,0.69476775,121770.0,121760.0,0.37757715]
[1760055215381,0.68707625,121770.0,121760.0,0.37757715]
[1760055215584,0.76707305,121770.0,121760.0,0.29190291]
[1760055219822,0.68707625,121770.0,121760.0,0.29190291]
[1760055223257,0.45499625,121770.0,121760.0,0.29190291]
[1760055223537,0.68707625,121770.0,121760.0,0.29190291]
[1760055228310,0.69476931,121770.0,121760.0,0.29190291]
[1760055236263,0.69476931,121770.0,121760.0,0.03541001]
[1760055236468,0.69476931,121770.0,121760.0,0.29190291]
[1760055238922,0.69476931,121770.0,121760.0,0.03541001]
[1760055239133,0.69476931,121770.0,121760.0,0.29190291]
[1760055239337,0.46268931,121770.0,121760.0,0.29190291]
[1760055239521,0.69472931,121770.0,121760.0,0.29190291]
[1760055240902,0.77472611,121770.0,121760.0,0.29190291]
[1760055241107,0.69472931,121770.0,121760.0,0.29190291]
[1760055245924,0.68703625,121770.0,121760.0,0.29190291]
[1760055246130,0.68703625,121770.0,121760.0,0.03541001]
[1760055246338,0.68703625,121770.0,121760.0,0.29190291]
[1760055250297,0.76703305,121770.0,121760.0,0.29190291]
[1760055251636,0.53499305,121770.0,121760.0,1e-08]
[1760055252060,0.76699305,121770.0,121760.0,1e-08]
[1760055253545,1.02348595,121770.0,121760.0,1e-08]
[1760055254234,0.76699305,121770.0,121760.0,0.25649291]
[1760055254439,0.76699305,121770.0,121760.0,1e-08]
[1760055255494,0.87460801,121770.0,121760.0,1e-08]
[1760055255709,1.10660801,121770.0,121760.0,1e-08]
[1760055255933,1.13128394,121770.0,121760.0,1e-08]
[1760055258337,1.47128394,121770.0,121760.0,1e-08]
[1760055258539,1.50913452,121770.0,121760.0,1e-08]
[1760055259207,1.42369452,121770.0,121760.0,1e-08]
[1760055259407,1.85093452,121770.0,121760.0,1e-08]
[1760055259612,1.86633283,121770.0,121760.0,1e-08]
[1760055265398,1.20709283,121770.0,121760.0,1e-08]
[1760055265609,1.51448482,121770.0,121760.0,1e-08]
[1760055266078,0.91049292,121770.0,121760.0,0.25649291]
[1760055266283,0.57049292,121770.0,121760.0,0.25649291]
[1760055266491,0.77011831,121770.0,121760.0,0.27579291]
[1760055266699,0.45267831,121770.0,121760.0,0.27579291]
[1760055266910,0.77015831,121770.0,121760.0,0.27579291]
[1760055268970,0.45267831,121770.0,121760.0,0.27579291]
[1760055269174,0.77015831,121770.0,121760.0,0.27579291]
[1760055272518,0.53811831,121770.0,121760.0,0.27579291]
[1760055272745,0.77011831,121770.0,121760.0,0.27579291]
[1760055272934,0.77011831,121770.0,121760.0,0.25649291]
[1760055274273,0.57857826,121770.0,121760.0,0.25649291]
[1760055276205,0.49313826,121770.0,121760.0,0.25649291]
[1760055276646,0.57857826,121770.0,121760.0,0.25649291]
[1760055277535,0.57857826,121770.0,121760.0,1e-08]
[1760055277768,0.65857506,121770.0,121760.0,1e-08]
[1760055279080,0.34113506,121770.0,121760.0,1e-08]
[1760055279289,0.57857826,121770.0,121760.0,1e-08]
[1760055279478,0.34657826,121770.0,121760.0,0.01950001]
[1760055279677,0.57857826,121770.0,121760.0,0.01950001]
[1760055279983,0.26113826,121770.0,121760.0,0.01950001]
[1760055280162,0.57857826,121770.0,121760.0,0.01950001]
[1760055280671,0.26113826,121770.0,121760.0,0.01950001]
[1760055280872,0.2634562,121770.0,121760.0,0.40509447]
[1760055281012,0.4954562,121770.0,121760.0,0.4472689]
[1760055281418,0.4100162,121770.0,121760.0,0.40509447]
[1760055281626,0.4954562,121770.0,121760.0,0.40509447]
[1760055282103,0.4100162,121770.0,121760.0,0.40509447]
[1760055282525,0.1780162,121770.0,121760.0,0.40509447]
[1760055282735,0.4954562,121770.0,121760.0,0.40509447]
[1760055284415,0.4954562,121770.0,121760.0,0.37605447]
[1760055288869,0.4954562,121770.0,121760.0,0.40649447]
[1760055290024,0.1780162,121770.0,121760.0,0.40649447]
[1760055290613,0.4954562,121770.0,121760.0,0.40649447]
[1760055296141,0.1780162,121770.0,121760.0,0.40649447]
[1760055296374,0.4954162,121770.0,121760.0,0.40649447]
[1760055296554,0.1780162,121770.0,121760.0,0.40649447]
[1760055296758,0.4954162,121770.0,121760.0,0.40649447]
[1760055301814,0.1780162,121770.0,121760.0,0.62949333]
[1760055302051,0.4954162,121770.0,121760.0,0.62949333]
[1760055302496,0.1780162,121770.0,121760.0,0.62949333]
[1760055302747,0.4099762,121770.0,121760.0,0.62949333]
[1760055305096,0.1780162,121770.0,121760.0,0.46523578]
[1760055305314,0.4099762,121770.0,121760.0,0.46523578]
[1760055305533,0.4099762,121770.0,121760.0,0.62949333]
[1760055305736,0.4099762,121770.0,121760.0,0.57075202]
[1760055306359,0.4099762,121770.0,121760.0,0.40649447]
[1760055306737,0.4099762,121770.0,121760.0,0.57075202]
[1760055307466,0.4099762,121770.0,121760.0,0.91276648]
[1760055307467,0.01377214,121770.0,121760.0,0.91276648]
[1760055307671,0.24573214,121770.0,121760.0,0.99276328]
[1760055307876,0.24573214,121770.0,121760.0,1.01743434]
[1760055308743,0.01377214,121770.0,121760.0,1.4405564]
[1760055308963,0.24573214,121770.0,121760.0,1.4405564]
[1760055309634,0.05437917,121770.0,121760.0,1.4405564]
[1760055310034,0.23196,121770.0,121760.0,1.4405564]
[1760055310241,0.23196,121770.0,121760.0,1.4415564]
[1760055310495,0.39670333,121780.0,121770.0,0.16424406]
[1760055310700,0.39670333,121780.0,121770.0,0.66412972]
[1760055310919,0.39670333,121780.0,121770.0,0.64770532]
[1760055311329,0.39670333,121780.0,121770.0,0.67237453]
[1760055311491,0.39670333,121780.0,121770.0,0.50813047]
[1760055312686,0.39670333,121780.0,121770.0,0.51642136]
[1760055313433,0.39670333,121780.0,121770.0,0.68066542]
[1760055314304,0.39670333,121780.0,121770.0,0.68166542]
[1760055322368,0.39670333,121780.0,121770.0,0.65699621]
[1760055323908,0.00051218,121780.0,121770.0,0.31498175]
[1760055324113,0.23243218,121780.0,121770.0,0.65699621]
[1760055325454,0.23243218,121780.0,121770.0,0.68166429]
[1760055327273,0.23160961,121780.0,121770.0,0.68166429]
[1760055327483,0.17242794,121790.0,121770.0,0.68166429]
[1760055327705,0.23192,121780.0,121770.0,0.31069983]
[1760055328381,0.23192,121780.0,121770.0,0.33964983]
[1760055328803,0.23192,121780.0,121770.0,0.33864983]
[1760055329000,0.23192,121780.0,121770.0,0.68066429]
[1760055330322,0.23192,121780.0,121770.0,0.68166429]
[1760055330630,0.17242794,121790.0,121770.0,0.68166429]
[1760055330841,0.40430794,121790.0,121780.0,0.53662808]
[1760055331053,0.38743407,121800.0,121780.0,0.58352905]
[1760055331054,0.28706407,121800.0,121780.0,0.58352905]
[1760055331199,0.45275343,121800.0,121790.0,0.54914155]
[1760055331414,0.45193416,121800.0,121790.0,0.40346446]
[1760055331613,0.45193416,121800.0,121790.0,0.56768155]
[1760055332622,0.22005416,121800.0,121790.0,0.56768155]
[1760055332794,0.45193416,121800.0,121790.0,0.64385216]
[1760055334058,0.45193416,121800.0,121790.0,0.47963507]
[1760055334211,0.45193416,121800.0,121790.0,0.47883611]
[1760055334929,0.22005416,121800.0,121790.0,0.47883611]
[1760055335145,0.05584616,121800.0,121790.0,0.6430532]
[1760055335339,0.05584616,121800.0,121790.0,1.64006972]
[1760055335543,0.05584616,121800.0,121790.0,1.66473266]
[1760055335755,0.05584616,121800.0,121790.0,1.43285266]
[1760055336203,0.05584616,121800.0,121790.0,1.66473266]
[1760055337174,0.05584616,121800.0,121790.0,1.66573266]
[1760055337378,0.0568703,121800.0,121790.0,1.43385266]
[1760055337584,0.0568703,121800.0,121790.0,1.66573266]
[1760055339627,0.0568703,121800.0,121790.0,1.75118007]
[1760055340173,0.0568703,121800.0,121790.0,1.51930007]
[1760055340388,0.0568703,121800.0,121790.0,1.75118007]
[1760055340821,0.0568703,121800.0,121790.0,1.75114007]
[1760055341245,0.0568703,121800.0,121790.0,1.51930007]
[1760055341516,0.0568703,121800.0,121790.0,1.75114007]
[1760055342592,0.0568703,121800.0,121790.0,1.51930007]
[1760055342787,0.0568703,121800.0,121790.0,1.75114007]
[1760055345121,0.0568703,121800.0,121790.0,1.51930007]
[1760055345358,0.0568703,121800.0,121790.0,1.75114007]
[1760055347318,0.0568703,121800.0,121790.0,1.51930007]
[1760055347766,0.0568703,121800.0,121790.0,1.75114007]
[1760055348537,0.0568703,121800.0,121790.0,1.49491428]
[1760055349558,0.0568703,121800.0,121790.0,1.26307428]
[1760055349775,0.0568703,121800.0,121790.0,1.49491428]
[1760055356569,0.0568703,121800.0,121790.0,1.26307428]
[1760055356812,0.0568703,121800.0,121790.0,1.49487428]
[1760055359868,0.22107391,121800.0,121790.0,0.08711294]
[1760055360078,0.22107391,121800.0,121790.0,0.31867579]
[1760055363769,0.22107391,121800.0,121790.0,0.48289288]
[1760055364185,0.22107391,121800.0,121790.0,0.31867579]
[1760055364400,0.22107391,121800.0,121790.0,0.28972579]
[1760055364604,0.45287391,121800.0,121790.0,0.28972579]
[1760055365231,0.22107391,121800.0,121790.0,0.36515593]
[1760055365429,0.45287391,121800.0,121790.0,0.36515593]
[1760055365644,0.45287391,121800.0,121790.0,0.39531593]
[1760055366006,0.45287391,121800.0,121790.0,0.31988579]
[1760055368373,0.45287391,121800.0,121790.0,0.28972579]
[1760055369551,0.45287391,121800.0,121790.0,0.0335]
[1760055369759,0.45287391,121800.0,121790.0,0.28972579]
[1760055369975,0.45291391,121800.0,121790.0,0.31988579]
[1760055370179,0.45291391,121800.0,121790.0,0.39531597]
[1760055371183,0.22107391,121800.0,121790.0,0.39531597]
[1760055371420,0.45291391,121800.0,121790.0,0.13909018]
[1760055371625,0.0568703,121800.0,121790.0,0.83218055]
[1760055371832,0.45291391,121800.0,121790.0,0.81575885]
[1760055372057,0.0568703,121800.0,121790.0,0.81575885]
[1760055372468,0.2887103,121800.0,121790.0,0.81575885]
[1760055373734,0.0568703,121800.0,121790.0,0.81575885]
[1760055373984,0.2887103,121800.0,121790.0,0.81575885]
[1760055374599,0.0568703,121800.0,121790.0,0.81575885]
[1760055374802,0.2887103,121800.0,121790.0,0.81575885]
[1760055376202,0.0568703,121800.0,121790.0,0.81575885]
[1760055376408,0.0568703,121800.0,121790.0,1.23888091]
[1760055377055,0.0568703,121800.0,121790.0,1.47072091]
[1760055378050,0.0568703,121800.0,121790.0,1.49538426]
[1760055382067,0.0568703,121800.0,121790.0,1.47072091]
[1760055386045,0.24501115,121810.0,121800.0,0.16420361]
[1760055386228,0.24501115,121810.0,121800.0,0.80668486]
[1760055386501,0.24501115,121810.0,121800.0,0.8204245]
[1760055391187,0.24336347,121810.0,121800.0,0.8196028]
[1760055391534,0.24387545,121810.0,121800.0,0.8196028]
[1760055391935,0.24387545,121810.0,121800.0,0.30715122]
[1760055392159,0.24387545,121810.0,121800.0,0.8196028]
[1760055394647,0.16470349,121810.0,121800.0,0.8196028]
[1760055394856,0.23231198,121810.0,121800.0,0.8196028]
[1760055395232,0.00051198,121810.0,121800.0,0.8196028]
[1760055395433,0.23231198,121810.0,121800.0,0.8196028]
[1760055395626,0.00051198,121810.0,121800.0,0.8196028]
[1760055395850,0.23231198,121810.0,121800.0,0.8196028]
[1760055398872,0.00051198,121810.0,121800.0,0.8196028]
[1760055399093,0.23231198,121810.0,121800.0,0.8196028]
[1760055399380,0.00051198,121810.0,121800.0,0.8196028]
[1760055399592,0.23231198,121810.0,121800.0,0.8196028]
[1760055400825,0.39650211,121810.0,121800.0,0.8196028]
[1760055401496,0.39650211,121810.0,121800.0,0.64882736]
[1760055402954,0.23231198,121810.0,121800.0,0.64882736]
[1760055405609,0.00051198,121810.0,121800.0,0.64882736]
[1760055405814,0.23231198,121810.0,121800.0,0.64882736]
[1760055406003,0.00051198,121810.0,121800.0,0.64882736]
[1760055406250,0.16470211,121810.0,121800.0,0.64882736]
[1760055406460,0.39650211,121810.0,121800.0,0.64882736]
[1760055408032,0.16470211,121810.0,121800.0,0.64882736]
[1760055408375,0.39650211,121810.0,121800.0,0.64882736]
[1760055409020,0.16470211,121810.0,121800.0,0.64882736]
[1760055409580,0.00051198,121810.0,121800.0,0.9905035]
[1760055409870,0.00051198,121810.0,121800.0,1.5623035]
[1760055410076,0.00051198,121810.0,121800.0,1.41362556]
[1760055410284,0.00051198,121810.0,121800.0,1.64542556]
[1760055410487,0.18864291,121820.0,121810.0,0.50586627]
[1760055410743,0.18864291,121820.0,121810.0,0.57028691]
[1760055410952,0.18864291,121820.0,121810.0,0.58879691]
[1760055413107,0.35281956,121820.0,121810.0,0.58879691]
[1760055413294,0.18864291,121820.0,121810.0,0.58879691]
[1760055413557,0.35281956,121820.0,121810.0,0.58879691]
[1760055414971,0.18864291,121820.0,121810.0,0.58879691]
[1760055416156,0.35333148,121820.0,121810.0,0.58879691]
[1760055418628,0.18915483,121820.0,121810.0,0.58879691]
[1760055418916,0.35333148,121820.0,121810.0,0.58879691]
[1760055419133,0.16468857,121820.0,121810.0,0.58879691]
[1760055419346,0.39648857,121820.0,121810.0,0.58879691]
[1760055420616,0.16468857,121820.0,121810.0,0.58879691]
[1760055420881,0.39648857,121820.0,121810.0,0.58879691]
[1760055421100,0.39644857,121820.0,121810.0,0.58879691]
[1760055426988,0.16468857,121820.0,121810.0,0.58879691]
[1760055427214,0.00051192,121820.0,121810.0,1.01191897]
[1760055427435,0.00051192,121820.0,121810.0,1.24367897]
[1760055428422,0.00051192,121820.0,121810.0,1.01191897]
[1760055428651,0.00051192,121820.0,121810.0,1.24467897]
[1760055431726,0.00051192,121820.0,121810.0,1.01291897]
[1760055431934,0.00051192,121820.0,121810.0,1.24467897]
[1760055432184,0.00051192,121820.0,121810.0,1.01291897]
[1760055432390,0.00051192,121820.0,121810.0,1.24467897]
[1760055432618,0.00051192,121820.0,121810.0,1.26933482]
[1760055433036,0.00051192,121820.0,121810.0,1.03757482]
[1760055433243,0.00051192,121820.0,121810.0,1.26933482]
[1760055433981,0.00051192,121820.0,121810.0,0.69589868]
[1760055434199,0.00051192,121820.0,121810.0,1.24467897]
[1760055434873,0.00051192,121820.0,121810.0,1.01291897]
[1760055435109,0.00051192,121820.0,121810.0,1.24467897]
[1760055435993,0.00051192,121820.0,121810.0,1.01291897]
[1760055436241,0.00051192,121820.0,121810.0,1.24467897]
[1760055438175,0.00051192,121820.0,121810.0,1.01291897]
[1760055438371,0.00051192,121820.0,121810.0,1.24467897]
[1760055439426,0.00051192,121820.0,121810.0,1.01291897]
[1760055439631,0.00051192,121820.0,121810.0,1.24467897]
[1760055440639,0.00051192,121820.0,121810.0,0.90300283]
[1760055440851,0.00051192,121820.0,121810.0,1.24467897]
[1760055442546,0.00051192,121820.0,121810.0,1.26933788]
[1760055445948,0.00051192,121820.0,121810.0,1.03757788]
[1760055446162,0.00051192,121820.0,121810.0,1.26929788]
[1760055447779,0.00051192,121820.0,121810.0,0.92762174]
[1760055447987,0.00051192,121820.0,121810.0,1.26929788]
[1760055452675,0.00051192,121820.0,121810.0,1.03757788]
[1760055452892,0.00051192,121820.0,121810.0,1.26929788]
[1760055453346,0.00051192,121820.0,121810.0,1.03757788]
[1760055453559,0.00051192,121820.0,121810.0,1.26929788]
[1760055455337,0.00051192,121820.0,121810.0,1.03757788]
[1760055455584,0.00051192,121820.0,121810.0,1.29570747]
[1760055455786,0.37993748,121860.0,121830.0,0.1641548]
[1760055455994,0.1641377,121850.0,121840.0,0.35630614]
[1760055456212,0.14821748,121860.0,121840.0,0.56910584]
[1760055456682,0.46533748,121860.0,121850.0,0.04413]
[1760055456867,0.46533748,121860.0,121850.0,0.06328]
[1760055457108,0.16736372,121870.0,121850.0,0.58550599]
[1760055457321,0.001,121860.0,121850.0,0.58145294]
[1760055457534,0.48441061,121870.0,121850.0,0.58145294]
[1760055457535,0.16729061,121870.0,121860.0,0.16412276]
[1760055457747,0.16729061,121870.0,121860.0,0.5395789]
[1760055457957,0.39901061,121870.0,121860.0,0.40495614]
[1760055458162,0.16729061,121870.0,121860.0,0.5690789]
[1760055458376,0.39901061,121870.0,121860.0,0.6490757]
[1760055459012,0.16729061,121870.0,121860.0,0.6490757]
[1760055459661,0.39901061,121870.0,121860.0,0.6490757]
[1760055460076,0.39901061,121870.0,121860.0,0.48495294]
[1760055460289,0.16729061,121870.0,121860.0,0.1432768]
[1760055460509,0.39901061,121870.0,121860.0,0.1432768]
[1760055460962,0.39603237,121870.0,121860.0,0.1432768]
[1760055461185,0.16412276,121860.0,121850.0,0.08114407]
[1760055461424,0.16412276,121860.0,121850.0,0.2644303]
[1760055461641,0.39584276,121860.0,121850.0,0.2939303]
[1760055461871,0.39788968,121860.0,121850.0,0.2939303]
[1760055462086,0.39788968,121860.0,121850.0,0.63560644]
[1760055462538,0.39788968,121860.0,121850.0,0.47147021]
[1760055463034,0.39788968,121860.0,121850.0,0.12979407]
[1760055463463,0.39788968,121860.0,121850.0,0.07564057]
[1760055463679,0.39788968,121860.0,121850.0,0.33176359]
[1760055464772,0.39788968,121860.0,121850.0,0.36126359]
[1760055465216,0.39788968,121860.0,121850.0,0.33176359]
[1760055465427,0.39788968,121860.0,121850.0,0.36126359]
[1760055468064,0.39788968,121860.0,121850.0,0.52539982]
[1760055469615,0.39788968,121860.0,121850.0,0.36126359]
[1760055470074,0.39788968,121860.0,121850.0,0.07564057]
[1760055470300,0.39788968,121860.0,121850.0,0.33176359]
[1760055471000,0.39788968,121860.0,121850.0,0.03386251]
[1760055471215,0.39788968,121860.0,121850.0,8.251e-05]
[1760055474975,0.39788968,121860.0,121850.0,0.03362251]
[1760055475178,0.64407968,121860.0,121850.0,0.03362251]
[1760055475389,0.64407968,121860.0,121850.0,8.251e-05]
[1760055477789,0.64407968,121860.0,121850.0,0.01968251]
[1760055478678,0.64407968,121860.0,121850.0,0.07058429]
[1760055479583,0.64407968,121860.0,121850.0,8.251e-05]
[1760055479814,1.15632572,121860.0,121850.0,8.251e-05]
[1760055480052,1.23944778,121860.0,121850.0,8.251e-05]
[1760055480509,1.34772778,121860.0,121850.0,8.251e-05]
[1760055480756,1.57940778,121860.0,121850.0,8.251e-05]
[1760055480967,1.60406722,121860.0,121850.0,8.251e-05]
[1760055482610,1.37238722,121860.0,121850.0,8.251e-05]
[1760055482822,1.68942722,121860.0,121850.0,8.251e-05]
[1760055483251,1.37238722,121860.0,121850.0,8.251e-05]
[1760055483463,1.68942722,121860.0,121850.0,8.251e-05]
[1760055484556,0.86014118,121860.0,121850.0,8.251e-05]
[1760055484789,0.52014118,121860.0,121850.0,8.251e-05]
[1760055485001,0.83718118,121860.0,121850.0,8.251e-05]
[1760055485189,0.52014118,121860.0,121850.0,8.251e-05]
[1760055485437,0.81252174,121860.0,121850.0,8.251e-05]
[1760055487619,0.49548174,121860.0,121850.0,8.251e-05]
[1760055487841,1.06864476,121860.0,121850.0,8.251e-05]
[1760055488274,0.49548174,121860.0,121850.0,8.251e-05]
[1760055488486,0.81252174,121860.0,121850.0,8.251e-05]
[1760055488687,0.58084174,121860.0,121850.0,8.251e-05]
[1760055488889,0.81256174,121860.0,121850.0,8.251e-05]
[1760055489116,0.58084174,121860.0,121850.0,0.02021251]
[1760055489334,0.49771968,121860.0,121850.0,0.35015108]
[1760055489527,0.49771968,121860.0,121850.0,0.51428731]
[1760055489788,0.56531692,121860.0,121850.0,0.35015108]
[1760055489999,0.41235968,121860.0,121850.0,0.51428731]
[1760055490233,0.24823692,121860.0,121850.0,0.77041033]
[1760055490448,0.47999692,121860.0,121850.0,0.5406969]
[1760055490865,0.24823692,121860.0,121850.0,0.5406969]
[1760055491077,0.47999692,121860.0,121850.0,0.5406969]
[1760055491955,0.47999692,121860.0,121850.0,0.56534953]
[1760055494018,0.47999692,121860.0,121850.0,0.64847159]
[1760055494019,0.24823692,121860.0,121850.0,0.64847159]
[1760055494229,0.47999692,121860.0,121850.0,0.64847159]
[1760055494640,0.47999692,121860.0,121850.0,0.39234857]
[1760055494846,0.24823692,121860.0,121850.0,0.622062]
[1760055495286,0.48003692,121860.0,121850.0,0.622062]
[1760055495684,0.48003692,121860.0,121850.0,0.64847159]
[1760055496224,0.48003692,121860.0,121850.0,0.90459461]
[1760055497315,0.47999692,121860.0,121850.0,0.90459461]
[1760055499389,0.47999692,121860.0,121850.0,0.64847159]
[1760055502310,0.47999692,121860.0,121850.0,0.62381896]
[1760055503560,0.47999692,121860.0,121850.0,0.36769594]
[1760055503766,0.47999692,121860.0,121850.0,0.62381896]
[1760055504183,0.24823692,121860.0,121850.0,0.62381896]
[1760055505600,0.24823692,121860.0,121850.0,0.87994198]
[1760055506016,0.24823692,121860.0,121850.0,0.62381896]
[1760055506229,0.24823692,121860.0,121850.0,0.36769594]
[1760055506439,0.24823692,121860.0,121850.0,0.62381896]
[1760055507309,0.24823692,121860.0,121850.0,0.36769594]
[1760055507525,0.24823692,121860.0,121850.0,0.62381896]
[1760055508155,0.24823692,121860.0,121850.0,0.85353239]
[1760055508375,0.24823692,121860.0,121850.0,1.08521239]
[1760055508583,0.24823692,121860.0,121850.0,0.85353239]
[1760055509030,0.24823692,121860.0,121850.0,1.08521239]
[1760055509459,0.24823692,121860.0,121850.0,0.59740937]
[1760055509686,0.24823692,121860.0,121850.0,0.82908937]
[1760055510962,0.24823692,121860.0,121850.0,1.08521239]
[1760055516393,0.24823692,121860.0,121850.0,0.57296635]
[1760055516598,0.24823692,121860.0,121850.0,1.08521239]
[1760055519524,0.24823692,121860.0,121850.0,0.85353239]
[1760055519990,0.24823692,121860.0,121850.0,1.08521239]
[1760055525489,0.24823692,121860.0,121850.0,0.9143458]
[1760055526278,0.24823692,121860.0,121850.0,1.2543458]
[1760055529328,0.24823692,121860.0,121850.0,1.2543058]
[1760055529761,0.24823692,121860.0,121850.0,1.04731499]
[1760055529966,0.24823692,121860.0,121850.0,1.27895499]
[1760055530649,0.24823692,121860.0,121850.0,0.70593554]
[1760055530869,0.24823692,121860.0,121850.0,1.0226658]
[1760055531072,0.24823692,121860.0,121850.0,1.2543058]
[1760055531275,0.24823692,121860.0,121850.0,0.9143058]
[1760055531513,0.24823692,121860.0,121850.0,0.6826658]
[1760055534682,0.24523692,121860.0,121850.0,0.6826658]
[1760055535633,0.47687692,121860.0,121850.0,0.6826658]
[1760055540714,0.24523692,121860.0,121850.0,0.6826658]
[1760055541150,0.24523692,121860.0,121850.0,0.9143058]
[1760055543789,0.40935968,121860.0,121850.0,0.6826658]
[1760055543999,0.40935968,121860.0,121850.0,0.9143058]
[1760055544000,0.24523692,121860.0,121850.0,0.9143058]
[1760055544609,0.24523692,121860.0,121850.0,0.57292635]
[1760055544817,0.40935968,121860.0,121850.0,0.9143058]
[1760055546148,0.40935968,121860.0,121850.0,0.6826658]
[1760055546352,0.64099968,121860.0,121850.0,0.9143058]
[1760055547468,0.64099968,121860.0,121850.0,0.34128635]
[1760055547681,0.64099968,121860.0,121850.0,0.57292635]
[1760055547889,0.64099968,121860.0,121850.0,0.9143058]
[1760055549348,0.47687692,121860.0,121850.0,0.9143058]
[1760055550799,0.24523692,121860.0,121850.0,0.6826658]
[1760055551015,0.64099968,121860.0,121850.0,8.251e-05]
[1760055551433,0.40935968,121860.0,121850.0,8.251e-05]
[1760055551644,0.64099968,121860.0,121850.0,8.251e-05]
[1760055552052,0.40935968,121860.0,121850.0,8.251e-05]
[1760055552467,0.64099968,121860.0,121850.0,8.251e-05]
[1760055554627,0.40935968,121860.0,121850.0,8.251e-05]
[1760055555046,0.64103968,121860.0,121850.0,8.251e-05]
[1760055558841,0.72416174,121860.0,121850.0,8.251e-05]
[1760055559932,0.80952174,121860.0,121850.0,8.251e-05]
[1760055560153,0.73185157,121860.0,121850.0,8.251e-05]
[1760055560360,0.81721157,121860.0,121850.0,8.251e-05]
[1760055562501,0.80952174,121860.0,121850.0,8.251e-05]
[1760055562715,0.57784174,121860.0,121850.0,8.251e-05]
[1760055562926,0.80952174,121860.0,121850.0,8.251e-05]
[1760055563573,0.72416174,121860.0,121850.0,8.251e-05]
[1760055563782,0.80952174,121860.0,121850.0,8.251e-05]
[1760055564433,0.49248174,121860.0,121850.0,8.251e-05]
[1760055564643,0.80952174,121860.0,121850.0,8.251e-05]
[1760055564872,0.49248174,121860.0,121850.0,8.251e-05]
[1760055565102,0.80952174,121860.0,121850.0,8.251e-05]
[1760055567742,0.49248174,121860.0,121850.0,8.251e-05]
[1760055567968,0.80952174,121860.0,121850.0,8.251e-05]
[1760055571198,0.57784174,121860.0,121850.0,8.251e-05]
[1760055571407,0.80952174,121860.0,121850.0,8.251e-05]
[1760055575853,0.57784174,121860.0,121850.0,8.251e-05]
[1760055576053,0.80952174,121860.0,121850.0,8.251e-05]
[1760055578731,0.57784174,121860.0,121850.0,8.251e-05]
[1760055578971,0.80952174,121860.0,121850.0,8.251e-05]
[1760055581475,0.81720819,121860.0,121850.0,8.251e-05]
[1760055582839,0.50016819,121860.0,121850.0,8.251e-05]
[1760055583049,0.81720819,121860.0,121850.0,8.251e-05]
[1760055583257,0.49248174,121860.0,121850.0,8.251e-05]
[1760055583463,0.80952174,121860.0,121850.0,8.251e-05]
[1760055583659,0.80952174,121860.0,121850.0,0.01866251]
[1760055583792,0.40935968,121860.0,121850.0,0.02477376]
[1760055584002,0.40935968,121860.0,121850.0,0.57238944]
[1760055584210,0.64103968,121860.0,121850.0,0.40825321]
[1760055584615,0.64103968,121860.0,121850.0,0.57238944]
[1760055584815,0.64103968,121860.0,121850.0,0.40825321]
[1760055585045,0.64103968,121860.0,121850.0,0.06687376]
[1760055585479,0.64103968,121860.0,121850.0,0.32297318]
[1760055587980,0.64103968,121860.0,121850.0,0.48710941]
[1760055588325,0.40935968,121860.0,121850.0,0.48710941]
[1760055588639,0.64103968,121860.0,121850.0,0.48710941]
[1760055593583,0.64103968,121860.0,121850.0,0.23100999]
[1760055593784,0.64103968,121860.0,121850.0,0.48710941]
[1760055596677,0.64103968,121860.0,121850.0,0.32297318]
[1760055596883,0.64103968,121860.0,121850.0,0.48710941]
[1760055601436,0.64103968,121860.0,121850.0,0.23100999]
[1760055601665,0.64103968,121860.0,121850.0,0.48710941]
[1760055601889,0.64103968,121860.0,121850.0,0.48099816]
[1760055602348,0.64103968,121860.0,121850.0,0.28817193]
[1760055603293,0.64103968,121860.0,121850.0,0.31669193]
[1760055603512,0.64103968,121860.0,121850.0,0.48082816]
[1760055603731,0.64103968,121860.0,121850.0,0.39668873]
[1760055605137,0.64103968,121860.0,121850.0,0.56082496]
[1760055610568,0.64103968,121860.0,121850.0,0.14058931]
[1760055610769,0.64103968,121860.0,121850.0,0.39668873]
[1760055610971,0.64103968,121860.0,121850.0,0.56082496]
[1760055611753,0.40935968,121860.0,121850.0,0.56082496]
[1760055611981,0.64099968,121860.0,121850.0,0.56082496]
[1760055617191,0.40935968,121860.0,121850.0,0.56082496]
[1760055617754,0.64099968,121860.0,121850.0,0.56082496]
[1760055618650,0.64099968,121860.0,121850.0,0.30472554]
[1760055618863,0.64099968,121860.0,121850.0,0.56082496]
[1760055622980,0.64099968,121860.0,121850.0,0.58547907]
[1760055623403,0.40935968,121860.0,121850.0,0.58547907]
[1760055623605,0.64099968,121860.0,121850.0,0.58547907]
[1760055624350,0.40935968,121860.0,121850.0,0.58547907]
[1760055624579,0.64099968,121860.0,121850.0,0.58547907]
[1760055625549,0.64099968,121860.0,121850.0,0.32937965]
[1760055625790,0.64099968,121860.0,121850.0,0.58547907]
[1760055627012,0.64099968,121860.0,121850.0,0.32937965]
[1760055627216,0.64099968,121860.0,121850.0,0.58547907]
[1760055633202,0.64099968,121860.0,121850.0,0.55695907]
[1760055633653,0.64099968,121860.0,121850.0,0.39282284]
[1760055633876,0.64099968,121860.0,121850.0,0.55695907]
[1760055634307,0.64099968,121860.0,121850.0,0.39282284]
[1760055634592,0.64099968,121860.0,121850.0,0.55695907]
[1760055636278,0.64099968,121860.0,121850.0,0.58324907]
[1760055638451,0.64099968,121860.0,121850.0,0.16301342]
[1760055638656,0.64099968,121860.0,121850.0,0.31282604]
[1760055639554,0.64099968,121860.0,121850.0,0.33911604]
[1760055639981,0.40935968,121860.0,121850.0,0.33911604]
[1760055640216,0.64099968,121860.0,121850.0,0.31282604]
[1760055642005,0.64099968,121860.0,121850.0,0.05672662]
[1760055642365,0.64099968,121860.0,121850.0,0.31282604]
[1760055642941,0.64099968,121860.0,121850.0,0.05672662]
[1760055643198,1.15319852,121860.0,121850.0,0.02473662]
[1760055643372,0.64099968,121860.0,121850.0,8.251e-05]
[1760055643594,0.8970991,121860.0,121850.0,8.251e-05]
[1760055645585,0.64099968,121860.0,121850.0,8.251e-05]
[1760055649087,0.40935968,121860.0,121850.0,8.251e-05]
[1760055649316,0.72635968,121860.0,121850.0,8.251e-05]